[Event "Titled Tuesday Blitz March 29 Early 2022"]
[White "Hamley, Ryan"]
[Black "Sapunov, Evgeny"]
[WhiteFideId "30959497"]
[BlackFideId "4126661"]
[WhiteElo "2529"]
[BlackElo "2703"]
[Result "0-1"]
[Round "04"]
[TimeControl "180+1"]
[Date "2022.03.30"]
[WhiteClock "0:00:03"]
[BlackClock "0:00:32"]

1. d4 {[%clk 0:03:00]}  Nf6 {[%clk 0:02:59]} 2. Bf4 {[%clk 0:03:00]}  d6 {[%clk 0:02:59]} 3. Nd2 {[%clk 0:03:00]}  Nc6 {[%clk 0:02:56]} 4. Ngf3 {[%clk 0:02:55]}  Nh5 {[%clk 0:02:54]} 5. Bg3 {[%clk 0:02:47]}  g6 {[%clk 0:02:50]} 6. e3 {[%clk 0:02:46]}  Nxg3 {[%clk 0:02:50]} 7. hxg3 {[%clk 0:02:45]}  Bg7 {[%clk 0:02:51]} 8. c4 {[%clk 0:02:45]}  e5 {[%clk 0:02:50]} 9. d5 {[%clk 0:02:39]}  Nb8 {[%clk 0:02:50]} 10. e4 {[%clk 0:02:40]}  a5 {[%clk 0:02:50]} 11. b3 {[%clk 0:02:36]}  Na6 {[%clk 0:02:50]} 12. a3 {[%clk 0:02:34]}  Bd7 {[%clk 0:02:49]} 13. Qc2 {[%clk 0:02:34]}  O-O {[%clk 0:02:48]} 14. Be2 {[%clk 0:02:31]}  Qe7 {[%clk 0:02:42]} 15. Rb1 {[%clk 0:02:21]}  c5 {[%clk 0:02:38]} 16. Nf1 {[%clk 0:02:06]}  Nc7 {[%clk 0:02:36]} 17. Ne3 {[%clk 0:02:06]}  b5 {[%clk 0:02:34]} 18. g4 {[%clk 0:02:00]}  h6 {[%clk 0:02:33]} 19. O-O {[%clk 0:01:55]}  Rfb8 {[%clk 0:02:30]} 20. Rfc1 {[%clk 0:01:52]}  b4 {[%clk 0:02:24]} 21. a4 {[%clk 0:01:51]}  Bf6 {[%clk 0:02:24]} 22. Rf1 {[%clk 0:01:42]}  Kg7 {[%clk 0:02:24]} 23. g3 {[%clk 0:01:42]}  Rh8 {[%clk 0:02:20]} 24. Kg2 {[%clk 0:01:40]}  Raf8 {[%clk 0:02:18]} 25. Rh1 {[%clk 0:01:40]}  Ne8 {[%clk 0:02:18]} 26. Nh4 {[%clk 0:01:36]}  Bg5 {[%clk 0:02:17]} 27. Qd3 {[%clk 0:01:33]}  Nf6 {[%clk 0:02:14]} 28. f3 {[%clk 0:01:28]}  Nh7 {[%clk 0:02:06]} 29. Rbf1 {[%clk 0:01:25]}  Re8 {[%clk 0:02:00]} 30. Bd1 {[%clk 0:01:23]}  Bc8 {[%clk 0:01:58]} 31. Bc2 {[%clk 0:01:23]}  Rhf8 {[%clk 0:01:54]} 32. f4 {[%clk 0:01:20]}  Bf6 {[%clk 0:01:44]} 33. f5 {[%clk 0:01:12]}  Bg5 {[%clk 0:01:42]} 34. Rf2 {[%clk 0:01:05]}  Rh8 {[%clk 0:01:34]} 35. Nf3 {[%clk 0:01:04]}  Ref8 {[%clk 0:01:29]} 36. Kf1 {[%clk 0:01:00]}  Bd7 {[%clk 0:01:26]} 37. Ke2 {[%clk 0:01:00]}  Nf6 {[%clk 0:01:23]} 38. Nxg5 {[%clk 0:00:55]}  hxg5 {[%clk 0:01:23]} 39. Rfh2 {[%clk 0:00:55]}  Qd8 {[%clk 0:01:23]} 40. Kd2 {[%clk 0:00:54]}  Rxh2+ {[%clk 0:01:23]} 41. Rxh2 {[%clk 0:00:54]}  Rh8 {[%clk 0:01:23]} 42. Qe2 {[%clk 0:00:55]}  Qg8 {[%clk 0:01:19]} 43. Qf2 {[%clk 0:00:49]}  Rh7 {[%clk 0:01:20]} 44. Rg2 {[%clk 0:00:43]}  Qh8 {[%clk 0:01:15]} 45. Qf3 {[%clk 0:00:42]}  Rh2 {[%clk 0:01:12]} 46. Bd1 {[%clk 0:00:36]}  Qh3 {[%clk 0:01:08]} 47. Rxh2 {[%clk 0:00:32]}  Qxh2+ {[%clk 0:01:08]} 48. Be2 {[%clk 0:00:33]}  Qxg3 {[%clk 0:00:52]} 49. Kd3 {[%clk 0:00:21]}  Qf4 {[%clk 0:00:51]} 50. Ng2 {[%clk 0:00:20]}  Qh2 {[%clk 0:00:47]} 51. Bd1 {[%clk 0:00:16]}  gxf5 {[%clk 0:00:47]} 52. gxf5 {[%clk 0:00:17]}  g4 {[%clk 0:00:42]} 53. Qe3 {[%clk 0:00:17]}  Qh3 {[%clk 0:00:41]} 54. Be2 {[%clk 0:00:07]}  Qxe3+ {[%clk 0:00:37]} 55. Kxe3 {[%clk 0:00:08]}  Kh6 {[%clk 0:00:37]} 56. Bd3 {[%clk 0:00:06]}  Kg5 {[%clk 0:00:38]} 57. Kf2 {[%clk 0:00:06]}  Nh5 {[%clk 0:00:38]} 58. Ke3 {[%clk 0:00:07]}  f6 {[%clk 0:00:38]} 59. Be2 {[%clk 0:00:06]}  Nf4 {[%clk 0:00:37]} 60. Bf1 {[%clk 0:00:06]}  Be8 {[%clk 0:00:36]} 61. Ne1 {[%clk 0:00:06]}  g3 {[%clk 0:00:34]} 62. Kf3 {[%clk 0:00:06]}  Kh4 {[%clk 0:00:33]} 63. Ng2+ {[%clk 0:00:02]}  Nxg2 {[%clk 0:00:33]} 64. Kxg2 {[%clk 0:00:03]}  Bh5 {[%clk 0:00:32]} 0-1


[Site "https://www.chess.com"]

[Event "Titled Tuesday Blitz March 29 Early 2022"]
[White "Horak, Martin"]
[Black "Dev, Shah"]
[WhiteFideId "367095"]
[BlackFideId "35019058"]
[WhiteElo "1997"]
[BlackElo "2075"]
[Result "0-1"]
[Round "04"]
[TimeControl "180+1"]
[Date "2022.03.30"]
[WhiteClock "0:00:08"]
[BlackClock "0:01:31"]

1. d4 {[%clk 0:03:00]}  d5 {[%clk 0:02:58]} 2. c4 {[%clk 0:02:59]}  c6 {[%clk 0:02:58]} 3. Nf3 {[%clk 0:02:56]}  Nf6 {[%clk 0:02:58]} 4. g3 {[%clk 0:02:56]}  Bf5 {[%clk 0:02:53]} 5. cxd5 {[%clk 0:02:53]}  cxd5 {[%clk 0:02:53]} 6. Nc3 {[%clk 0:02:52]}  Nc6 {[%clk 0:02:53]} 7. a3 {[%clk 0:02:51]}  e6 {[%clk 0:02:53]} 8. Bg2 {[%clk 0:02:51]}  Bd6 {[%clk 0:02:53]} 9. O-O {[%clk 0:02:51]}  h6 {[%clk 0:02:52]} 10. Qb3 {[%clk 0:02:35]}  a6 {[%clk 0:02:48]} 11. Bf4 {[%clk 0:02:23]}  O-O {[%clk 0:02:40]} 12. Bxd6 {[%clk 0:01:54]}  Qxd6 {[%clk 0:02:39]} 13. Na4 {[%clk 0:01:53]}  Nd7 {[%clk 0:02:34]} 14. Rfc1 {[%clk 0:01:46]}  Na5 {[%clk 0:02:28]} 15. Qb4 {[%clk 0:01:32]}  Qxb4 {[%clk 0:02:27]} 16. axb4 {[%clk 0:01:33]}  Nb3 {[%clk 0:02:28]} 17. Rc7 {[%clk 0:01:28]}  Nxa1 {[%clk 0:02:28]} 18. Rxd7 {[%clk 0:01:28]}  Rfd8 {[%clk 0:02:22]} 19. Rxb7 {[%clk 0:01:27]}  Rab8 {[%clk 0:02:23]} 20. Ra7 {[%clk 0:01:11]}  Rxb4 {[%clk 0:02:22]} 21. Rxa6 {[%clk 0:01:11]}  Nc2 {[%clk 0:02:14]} 22. e3 {[%clk 0:01:09]}  Bd3 {[%clk 0:02:13]} 23. Ra7 {[%clk 0:01:07]}  Bb5 {[%clk 0:02:12]} 24. Nc3 {[%clk 0:01:04]}  Bc4 {[%clk 0:02:05]} 25. Ne5 {[%clk 0:01:01]}  Rxb2 {[%clk 0:02:05]} 26. Nxf7 {[%clk 0:00:55]}  Rf8 {[%clk 0:01:57]} 27. Ne5 {[%clk 0:00:50]}  Rb3 {[%clk 0:01:51]} 28. Nxc4 {[%clk 0:00:47]}  dxc4 {[%clk 0:01:51]} 29. Ne4 {[%clk 0:00:38]}  Rb1+ {[%clk 0:01:51]} 30. Bf1 {[%clk 0:00:37]}  Nxe3 {[%clk 0:01:51]} 31. fxe3 {[%clk 0:00:32]}  Rbxf1+ {[%clk 0:01:50]} 32. Kg2 {[%clk 0:00:33]}  Re1 {[%clk 0:01:49]} 33. Ra3 {[%clk 0:00:31]}  Rb8 {[%clk 0:01:48]} 34. Rc3 {[%clk 0:00:28]}  Rb2+ {[%clk 0:01:44]} 35. Kf3 {[%clk 0:00:22]}  Rf1+ {[%clk 0:01:33]} 36. Kg4 {[%clk 0:00:21]}  Rxh2 {[%clk 0:01:33]} 37. Rxc4 {[%clk 0:00:20]}  Rf5 {[%clk 0:01:32]} 38. Rc8+ {[%clk 0:00:08]}  Kh7 {[%clk 0:01:31]} 0-1


[Site "https://www.chess.com"]

[Event "Titled Tuesday Blitz March 29 Early 2022"]
[White "Jaskolka, Tomasz"]
[Black "Karolczuk, Iwo"]
[WhiteFideId "1170791"]
[BlackFideId "21816972"]
[WhiteElo "2428"]
[BlackElo "2673"]
[Result "1/2-1/2"]
[Round "04"]
[TimeControl "180+1"]
[Date "2022.03.30"]
[WhiteClock "0:00:07"]
[BlackClock "0:00:07"]

1. d4 {[%clk 0:03:00]}  Nf6 {[%clk 0:02:59]} 2. Bf4 {[%clk 0:02:59]}  b6 {[%clk 0:02:58]} 3. e3 {[%clk 0:02:57]}  Bb7 {[%clk 0:02:58]} 4. Nf3 {[%clk 0:02:57]}  g6 {[%clk 0:02:55]} 5. Nbd2 {[%clk 0:02:57]}  Bg7 {[%clk 0:02:55]} 6. c3 {[%clk 0:02:57]}  O-O {[%clk 0:02:55]} 7. Bd3 {[%clk 0:02:58]}  d6 {[%clk 0:02:56]} 8. Qe2 {[%clk 0:02:55]}  Nbd7 {[%clk 0:02:56]} 9. h4 {[%clk 0:02:55]}  Qe8 {[%clk 0:02:51]} 10. h5 {[%clk 0:02:54]}  e5 {[%clk 0:02:51]} 11. hxg6 {[%clk 0:02:42]}  exf4 {[%clk 0:02:50]} 12. gxh7+ {[%clk 0:02:42]}  Kh8 {[%clk 0:02:49]} 13. O-O-O {[%clk 0:02:41]}  fxe3 {[%clk 0:02:43]} 14. fxe3 {[%clk 0:02:42]}  Ng4 {[%clk 0:02:43]} 15. e4 {[%clk 0:02:39]}  f5 {[%clk 0:02:42]} 16. Nh4 {[%clk 0:02:19]}  Nh6 {[%clk 0:02:18]} 17. exf5 {[%clk 0:01:56]}  Qxe2 {[%clk 0:02:01]} 18. Ng6+ {[%clk 0:01:56]}  Kxh7 {[%clk 0:02:02]} 19. Nxf8+ {[%clk 0:01:56]}  Rxf8 {[%clk 0:01:57]} 20. Bxe2 {[%clk 0:01:57]}  Bxg2 {[%clk 0:01:52]} 21. Rh2 {[%clk 0:01:56]}  Bd5 {[%clk 0:01:51]} 22. Bd3 {[%clk 0:01:49]}  Nf6 {[%clk 0:01:49]} 23. Rg1 {[%clk 0:01:41]}  c5 {[%clk 0:01:46]} 24. dxc5 {[%clk 0:01:37]}  dxc5 {[%clk 0:01:44]} 25. Rg6 {[%clk 0:01:33]}  Bf7 {[%clk 0:00:59]} 26. Rhxh6+ {[%clk 0:01:24]}  Bxh6 {[%clk 0:01:00]} 27. Rxf6 {[%clk 0:01:25]}  Bf4 {[%clk 0:00:59]} 28. Kc2 {[%clk 0:01:19]}  Kg7 {[%clk 0:00:58]} 29. Rc6 {[%clk 0:01:19]}  Bd5 {[%clk 0:00:57]} 30. Rg6+ {[%clk 0:01:16]}  Kf7 {[%clk 0:00:54]} 31. c4 {[%clk 0:00:53]}  Ba8 {[%clk 0:00:45]} 32. Ne4 {[%clk 0:00:51]}  Rg8 {[%clk 0:00:20]} 33. Rf6+ {[%clk 0:00:44]}  Ke7 {[%clk 0:00:20]} 34. Re6+ {[%clk 0:00:44]}  Kf7 {[%clk 0:00:19]} 35. Nd6+ {[%clk 0:00:34]}  Bxd6 {[%clk 0:00:19]} 36. Rxd6 {[%clk 0:00:35]}  Ke7 {[%clk 0:00:16]} 37. Rh6 {[%clk 0:00:33]}  Rf8 {[%clk 0:00:11]} 38. Kc3 {[%clk 0:00:31]}  Rf6 {[%clk 0:00:10]} 39. Rh7+ {[%clk 0:00:29]}  Rf7 {[%clk 0:00:10]} 40. Rh8 {[%clk 0:00:27]}  Bc6 {[%clk 0:00:10]} 41. Rh6 {[%clk 0:00:26]}  Bd7 {[%clk 0:00:09]} 42. Rh5 {[%clk 0:00:19]}  Kf6 {[%clk 0:00:08]} 43. a3 {[%clk 0:00:19]}  Ke5 {[%clk 0:00:08]} 44. b4 {[%clk 0:00:17]}  Bxf5 {[%clk 0:00:06]} 45. bxc5 {[%clk 0:00:17]}  bxc5 {[%clk 0:00:06]} 46. Bxf5 {[%clk 0:00:07]}  Rxf5 {[%clk 0:00:06]} 47. Rxf5+ {[%clk 0:00:04]}  Kxf5 {[%clk 0:00:07]} 48. Kb3 {[%clk 0:00:05]}  Ke4 {[%clk 0:00:06]} 49. Ka4 {[%clk 0:00:05]}  Kd4 {[%clk 0:00:06]} 50. Kb5 {[%clk 0:00:06]}  a6+ {[%clk 0:00:06]} 51. Kxa6 {[%clk 0:00:06]}  Kxc4 {[%clk 0:00:06]} 52. Kb6 {[%clk 0:00:06]}  Kb3 {[%clk 0:00:06]} 53. Kxc5 {[%clk 0:00:07]}  Kxa3 {[%clk 0:00:07]} 1/2-1/2


[Site "https://www.chess.com"]

[Event "Titled Tuesday Blitz March 29 Early 2022"]
[White "Kamsky, Gata"]
[Black "Andreikin, Dmitry"]
[WhiteFideId "2000024"]
[BlackFideId "4158814"]
[WhiteElo "2645"]
[BlackElo "2736"]
[Result "1/2-1/2"]
[Round "04"]
[TimeControl "180+1"]
[Date "2022.03.29"]
[WhiteClock "0:02:42"]
[BlackClock "0:02:58"]

1. d4 {[%clk 0:03:00]}  d5 {[%clk 0:03:00]} 2. Bf4 {[%clk 0:03:00]}  Nf6 {[%clk 0:02:57]} 3. e3 {[%clk 0:03:00]}  c5 {[%clk 0:02:57]} 4. c3 {[%clk 0:03:00]}  Nc6 {[%clk 0:02:57]} 5. Nd2 {[%clk 0:02:59]}  g6 {[%clk 0:02:57]} 6. Ngf3 {[%clk 0:02:54]}  Bg7 {[%clk 0:02:57]} 7. h3 {[%clk 0:02:42]}  O-O {[%clk 0:02:57]} 8. Be2 {[%clk 0:02:42]}  Nd7 {[%clk 0:02:57]} 9. O-O {[%clk 0:02:42]}  e5 {[%clk 0:02:57]} 10. dxe5 {[%clk 0:02:42]}  Ndxe5 {[%clk 0:02:58]} 11. Nxe5 {[%clk 0:02:42]} 1/2-1/2


[Site "https://www.chess.com"]

[Event "Titled Tuesday Blitz March 29 Early 2022"]
[White "Kostina, Nadezhda"]
[Black "Terletsky, Oleg"]
[WhiteFideId "4195876"]
[BlackFideId "14116774"]
[WhiteElo "1982"]
[BlackElo "2064"]
[Result "0-1"]
[Round "04"]
[TimeControl "180+1"]
[Date "2022.03.30"]
[WhiteClock "0:00:09"]
[BlackClock "0:01:18"]

1. e4 {[%clk 0:03:00]}  e5 {[%clk 0:02:58]} 2. Nf3 {[%clk 0:02:58]}  Nc6 {[%clk 0:02:54]} 3. Bc4 {[%clk 0:02:52]}  Nf6 {[%clk 0:02:53]} 4. d3 {[%clk 0:02:42]}  h6 {[%clk 0:02:52]} 5. O-O {[%clk 0:02:40]}  d6 {[%clk 0:02:51]} 6. a4 {[%clk 0:02:39]}  g6 {[%clk 0:02:50]} 7. c3 {[%clk 0:02:38]}  Bg7 {[%clk 0:02:50]} 8. h3 {[%clk 0:02:38]}  O-O {[%clk 0:02:49]} 9. Be3 {[%clk 0:02:31]}  Na5 {[%clk 0:02:46]} 10. Ba2 {[%clk 0:02:28]}  c5 {[%clk 0:02:46]} 11. Nbd2 {[%clk 0:02:22]}  Nc6 {[%clk 0:02:46]} 12. Re1 {[%clk 0:02:19]}  Kh7 {[%clk 0:02:41]} 13. Nf1 {[%clk 0:02:13]}  b6 {[%clk 0:02:39]} 14. Ng3 {[%clk 0:02:10]}  d5 {[%clk 0:02:38]} 15. exd5 {[%clk 0:02:04]}  Nxd5 {[%clk 0:02:39]} 16. Bd2 {[%clk 0:02:00]}  Bb7 {[%clk 0:02:29]} 17. Rc1 {[%clk 0:01:32]}  Qd7 {[%clk 0:02:29]} 18. Qc2 {[%clk 0:01:08]}  Rad8 {[%clk 0:02:25]} 19. Rcd1 {[%clk 0:01:08]}  f5 {[%clk 0:02:25]} 20. Bc1 {[%clk 0:01:07]}  Nf4 {[%clk 0:02:09]} 21. Bb1 {[%clk 0:00:45]}  Qc7 {[%clk 0:01:55]} 22. Ne2 {[%clk 0:00:33]}  Nxe2+ {[%clk 0:01:49]} 23. Rxe2 {[%clk 0:00:33]}  Ne7 {[%clk 0:01:48]} 24. Rde1 {[%clk 0:00:29]}  Bxf3 {[%clk 0:01:47]} 25. gxf3 {[%clk 0:00:28]}  Nd5 {[%clk 0:01:31]} 26. f4 {[%clk 0:00:26]}  exf4 {[%clk 0:01:26]} 27. c4 {[%clk 0:00:18]}  f3 {[%clk 0:01:26]} 28. Re6 {[%clk 0:00:17]}  Nf4 {[%clk 0:01:22]} 29. Re7 {[%clk 0:00:15]}  Nxh3+ {[%clk 0:01:22]} 30. Kh1 {[%clk 0:00:15]}  Rd7 {[%clk 0:01:17]} 31. Rxd7 {[%clk 0:00:13]}  Qxd7 {[%clk 0:01:18]} 32. Qd1 {[%clk 0:00:12]}  Nxf2+ {[%clk 0:01:18]} 33. Kg1 {[%clk 0:00:09]}  Nxd1 {[%clk 0:01:18]} 0-1


[Site "https://www.chess.com"]

[Event "Titled Tuesday Blitz March 29 Early 2022"]
[White "Korchmar, Vasiliy"]
[Black "Shtyka, Sergey"]
[WhiteFideId "24131750"]
[BlackFideId "4138465"]
[WhiteElo "2370"]
[BlackElo "2014"]
[Result "1-0"]
[Round "04"]
[TimeControl "180+1"]
[Date "2022.03.30"]
[WhiteClock "0:02:55"]
[BlackClock "0:00:07"]

1. d4 {[%clk 0:03:00]}  c5 {[%clk 0:02:59]} 2. d5 {[%clk 0:03:00]}  e5 {[%clk 0:02:59]} 3. Nc3 {[%clk 0:03:01]}  d6 {[%clk 0:03:00]} 4. e4 {[%clk 0:03:02]}  Be7 {[%clk 0:03:00]} 5. Bb5+ {[%clk 0:03:02]}  Nd7 {[%clk 0:02:59]} 6. a4 {[%clk 0:03:03]}  Bg5 {[%clk 0:02:58]} 7. Nf3 {[%clk 0:03:04]}  Bxc1 {[%clk 0:02:58]} 8. Qxc1 {[%clk 0:03:04]}  Nf6 {[%clk 0:02:58]} 9. O-O {[%clk 0:03:05]}  O-O {[%clk 0:02:57]} 10. Nd2 {[%clk 0:03:05]}  Ne8 {[%clk 0:02:55]} 11. Bd3 {[%clk 0:03:04]}  b6 {[%clk 0:02:52]} 12. Nc4 {[%clk 0:03:04]}  Ba6 {[%clk 0:02:46]} 13. Nxe5 {[%clk 0:02:58]}  Bxd3 {[%clk 0:01:50]} 14. Nc6 {[%clk 0:02:57]}  Bxf1 {[%clk 0:01:12]} 15. Nxd8 {[%clk 0:02:57]}  Rxd8 {[%clk 0:01:13]} 16. Qxf1 {[%clk 0:02:57]}  f5 {[%clk 0:01:12]} 17. Qa6 {[%clk 0:02:52]}  fxe4 {[%clk 0:00:25]} 18. Nxe4 {[%clk 0:02:53]}  Nef6 {[%clk 0:00:22]} 19. Nxf6+ {[%clk 0:02:54]}  Nxf6 {[%clk 0:00:22]} 20. Qxa7 {[%clk 0:02:54]}  Nxd5 {[%clk 0:00:22]} 21. c4 {[%clk 0:02:55]}  Nf4 {[%clk 0:00:20]} 22. Qxb6 {[%clk 0:02:55]}  d5 {[%clk 0:00:17]} 23. cxd5 {[%clk 0:02:53]}  Rxd5 {[%clk 0:00:17]} 24. a5 {[%clk 0:02:54]}  Rfd8 {[%clk 0:00:16]} 25. h3 {[%clk 0:02:54]}  R5d6 {[%clk 0:00:10]} 26. Qxc5 {[%clk 0:02:53]}  Nd3 {[%clk 0:00:10]} 27. Qc4+ {[%clk 0:02:53]}  Kh8 {[%clk 0:00:10]} 28. a6 {[%clk 0:02:54]}  Nxb2 {[%clk 0:00:08]} 29. Qb3 {[%clk 0:02:54]}  Nd3 {[%clk 0:00:07]} 30. a7 {[%clk 0:02:55]}  Nc5 {[%clk 0:00:07]} 31. Qb8 {[%clk 0:02:55]} 1-0


[Site "https://www.chess.com"]

[Event "Titled Tuesday Blitz March 29 Early 2022"]
[White "Kouskoutis, Georgios-Alexandros"]
[Black "Muradov, Soltan"]
[WhiteFideId "4234049"]
[BlackFideId "14002108"]
[WhiteElo "2130"]
[BlackElo "1854"]
[Result "1-0"]
[Round "04"]
[TimeControl "180+1"]
[Date "2022.03.30"]
[WhiteClock "0:00:02"]
[BlackClock "0:00:02"]

1. c4 {[%clk 0:03:00]}  e5 {[%clk 0:02:57]} 2. g3 {[%clk 0:03:01]}  Nf6 {[%clk 0:02:57]} 3. Bg2 {[%clk 0:03:00]}  c6 {[%clk 0:02:57]} 4. Nf3 {[%clk 0:03:00]}  Qc7 {[%clk 0:02:57]} 5. O-O {[%clk 0:03:00]}  d5 {[%clk 0:02:54]} 6. cxd5 {[%clk 0:03:00]}  cxd5 {[%clk 0:02:55]} 7. d4 {[%clk 0:02:51]}  e4 {[%clk 0:02:56]} 8. Ne5 {[%clk 0:02:50]}  Nc6 {[%clk 0:02:57]} 9. Nxc6 {[%clk 0:02:41]}  bxc6 {[%clk 0:02:56]} 10. Nc3 {[%clk 0:02:41]}  Bd6 {[%clk 0:02:28]} 11. Bg5 {[%clk 0:02:33]}  Nd7 {[%clk 0:02:22]} 12. Rc1 {[%clk 0:02:19]}  Qa5 {[%clk 0:02:22]} 13. Qa4 {[%clk 0:01:36]}  Qxa4 {[%clk 0:02:22]} 14. Nxa4 {[%clk 0:01:37]}  Bb7 {[%clk 0:02:23]} 15. Bf4 {[%clk 0:01:28]}  Ke7 {[%clk 0:02:21]} 16. Bxd6+ {[%clk 0:01:26]}  Kxd6 {[%clk 0:02:22]} 17. Bh3 {[%clk 0:01:26]}  Rhf8 {[%clk 0:01:53]} 18. Bxd7 {[%clk 0:01:25]}  Kxd7 {[%clk 0:01:54]} 19. Rc2 {[%clk 0:01:19]}  Rac8 {[%clk 0:01:50]} 20. Rfc1 {[%clk 0:01:18]}  Ba8 {[%clk 0:01:45]} 21. f3 {[%clk 0:01:17]}  f5 {[%clk 0:01:45]} 22. Kf2 {[%clk 0:01:16]}  g5 {[%clk 0:01:44]} 23. b4 {[%clk 0:01:11]}  f4 {[%clk 0:01:36]} 24. fxe4 {[%clk 0:01:01]}  dxe4 {[%clk 0:01:34]} 25. Nc5+ {[%clk 0:00:57]}  Ke7 {[%clk 0:01:22]} 26. Nxe4 {[%clk 0:00:56]}  c5 {[%clk 0:01:16]} 27. Nxc5 {[%clk 0:00:55]}  fxg3+ {[%clk 0:01:00]} 28. Kxg3 {[%clk 0:00:55]}  h5 {[%clk 0:01:01]} 29. Nd3 {[%clk 0:00:39]}  Rcd8 {[%clk 0:00:40]} 30. Rc7+ {[%clk 0:00:38]}  Ke6 {[%clk 0:00:40]} 31. Nc5+ {[%clk 0:00:26]}  Kd6 {[%clk 0:00:27]} 32. Nb7+ {[%clk 0:00:22]}  Bxb7 {[%clk 0:00:19]} 33. Rxb7 {[%clk 0:00:23]}  h4+ {[%clk 0:00:20]} 34. Kg2 {[%clk 0:00:18]}  Rf4 {[%clk 0:00:19]} 35. e3 {[%clk 0:00:17]}  Re4 {[%clk 0:00:16]} 36. Rc3 {[%clk 0:00:15]}  g4 {[%clk 0:00:07]} 37. Rf7 {[%clk 0:00:08]}  a5 {[%clk 0:00:05]} 38. b5 {[%clk 0:00:08]}  a4 {[%clk 0:00:05]} 39. Rf6+ {[%clk 0:00:08]}  Kd5 {[%clk 0:00:05]} 40. Rf5+ {[%clk 0:00:08]}  Ke6 {[%clk 0:00:05]} 41. Rh5 {[%clk 0:00:07]}  h3+ {[%clk 0:00:05]} 42. Kg1 {[%clk 0:00:05]}  Rb8 {[%clk 0:00:04]} 43. b6 {[%clk 0:00:04]}  Kd7 {[%clk 0:00:02]} 44. b7 {[%clk 0:00:03]}  Rxb7 {[%clk 0:00:01]} 45. Rh7+ {[%clk 0:00:04]}  Re7 {[%clk 0:00:02]} 46. Rxe7+ {[%clk 0:00:04]}  Kxe7 {[%clk 0:00:03]} 47. Rc2 {[%clk 0:00:02]}  Rb1+ {[%clk 0:00:03]} 48. Kf2 {[%clk 0:00:03]}  Rh1 {[%clk 0:00:03]} 49. Kg3 {[%clk 0:00:03]}  Rg1+ {[%clk 0:00:03]} 50. Kh4 {[%clk 0:00:03]}  Rg2 {[%clk 0:00:03]} 51. Rc7+ {[%clk 0:00:03]}  Kd6 {[%clk 0:00:03]} 52. Rg7 {[%clk 0:00:03]}  Rg3 {[%clk 0:00:02]} 53. Kxg3 {[%clk 0:00:02]} 1-0


[Site "https://www.chess.com"]

[Event "Titled Tuesday Blitz March 29 Early 2022"]
[White "Kucuksari, Kaan"]
[Black "Meissner, Felix"]
[WhiteFideId "6380166"]
[BlackFideId "24671827"]
[WhiteElo "2717"]
[BlackElo "2548"]
[Result "1-0"]
[Round "04"]
[TimeControl "180+1"]
[Date "2022.03.30"]
[WhiteClock "0:00:10"]
[BlackClock "0:00:15"]

1. d4 {[%clk 0:03:00]}  g6 {[%clk 0:02:59]} 2. e4 {[%clk 0:02:59]}  c6 {[%clk 0:02:59]} 3. Nf3 {[%clk 0:02:59]}  d5 {[%clk 0:02:59]} 4. e5 {[%clk 0:02:59]}  h5 {[%clk 0:02:59]} 5. Bd3 {[%clk 0:02:59]}  Nh6 {[%clk 0:03:00]} 6. O-O {[%clk 0:02:58]}  Bf5 {[%clk 0:03:00]} 7. Bxh6 {[%clk 0:02:56]}  Bxh6 {[%clk 0:02:59]} 8. Bxf5 {[%clk 0:02:56]}  gxf5 {[%clk 0:02:59]} 9. Nh4 {[%clk 0:02:56]}  e6 {[%clk 0:02:59]} 10. Nf3 {[%clk 0:02:52]}  Rg8 {[%clk 0:02:54]} 11. a4 {[%clk 0:02:44]}  Nd7 {[%clk 0:02:52]} 12. a5 {[%clk 0:02:44]}  a6 {[%clk 0:02:51]} 13. b4 {[%clk 0:02:44]}  Nf8 {[%clk 0:02:50]} 14. c4 {[%clk 0:02:43]}  Ng6 {[%clk 0:02:50]} 15. Kh1 {[%clk 0:02:42]}  h4 {[%clk 0:02:48]} 16. cxd5 {[%clk 0:02:37]}  Qxd5 {[%clk 0:02:42]} 17. Nc3 {[%clk 0:02:36]}  Qc4 {[%clk 0:02:33]} 18. Na4 {[%clk 0:02:35]}  Rd8 {[%clk 0:02:30]} 19. Nc5 {[%clk 0:02:24]}  Nf4 {[%clk 0:02:25]} 20. Nxb7 {[%clk 0:02:18]}  Bf8 {[%clk 0:02:01]} 21. Nxd8 {[%clk 0:02:04]}  Kxd8 {[%clk 0:01:45]} 22. Nxh4 {[%clk 0:02:00]}  Be7 {[%clk 0:01:34]} 23. Qf3 {[%clk 0:01:51]}  Rg4 {[%clk 0:01:34]} 24. g3 {[%clk 0:01:40]}  Bxh4 {[%clk 0:01:33]} 25. gxf4 {[%clk 0:01:39]}  Kd7 {[%clk 0:01:22]} 26. Rg1 {[%clk 0:01:31]}  Rxg1+ {[%clk 0:01:16]} 27. Kxg1 {[%clk 0:01:32]}  Qxb4 {[%clk 0:01:10]} 28. Rc1 {[%clk 0:01:28]}  Qb5 {[%clk 0:01:01]} 29. Rc5 {[%clk 0:01:25]}  Qa4 {[%clk 0:00:59]} 30. Kg2 {[%clk 0:01:17]}  Be7 {[%clk 0:00:57]} 31. Rc1 {[%clk 0:01:13]}  Qb5 {[%clk 0:00:53]} 32. Rh1 {[%clk 0:01:08]}  Bh4 {[%clk 0:00:47]} 33. Ra1 {[%clk 0:00:46]}  Qb2 {[%clk 0:00:43]} 34. Rd1 {[%clk 0:00:42]}  Qc2 {[%clk 0:00:40]} 35. Rf1 {[%clk 0:00:32]}  Qb2 {[%clk 0:00:37]} 36. Qd3 {[%clk 0:00:31]}  Qa2 {[%clk 0:00:31]} 37. d5 {[%clk 0:00:19]}  cxd5 {[%clk 0:00:27]} 38. Qxa6 {[%clk 0:00:15]}  Qd2 {[%clk 0:00:23]} 39. Qb7+ {[%clk 0:00:14]}  Ke8 {[%clk 0:00:23]} 40. Qb5+ {[%clk 0:00:11]}  Kf8 {[%clk 0:00:22]} 41. Qc5+ {[%clk 0:00:11]}  Kg7 {[%clk 0:00:21]} 42. Rg1 {[%clk 0:00:10]}  Qxf4 {[%clk 0:00:18]} 43. Qe3 {[%clk 0:00:10]}  Qg4+ {[%clk 0:00:15]} 44. Kh1 {[%clk 0:00:10]} 1-0


[Site "https://www.chess.com"]